Workbook

Sheet Sheet1
C1: PETTY CASH RECEIPTS - RAPHAEL CONTRACTING LTD
B3: Invoice No. | C3: 139 | F3: Date of Invoice: | H3: 09/06/10 | K3: Dates from/to | M3: 01/04/10 to 18/06/10
A4: Date | B4: Description | C4: Total | D4: vat | E4: Motor & Travel | F4: Entmnt | G4: sundries | H4: Printing Postage & Stationery | I4: Timber & Sheeting | J4: Building Material | K4: Fixings Con | L4: Repairs/Maintenance | M4: other | N4: Detail | O4: Job | P4: nominal code | Q4: nett | R4: vat amt | S4: Total amt
A5: 2010-04-01 | B5: Post Office | C5: 8.22 | D5: 0 | H5: 8.22 | N5: laing document | O5: Head01 | P5: 41402 | Q5: =C5/1.175 -> 6.995744681 | R5: =C5-Q5 -> 1.224255319 | S5: =Q5+R5 -> 8.22
A6: 2010-04-06 | B6: Timpsons Ltd | C6: 14 | D6: 2.09 | M6: 11.91 | N6: keys for office | O6: Head01 | P6: 41700 | Q6: =C6/1.175 -> 11.91489362 | R6: =C6-Q6 -> 2.085106383 | S6: =Q6+R6 -> 14
A7: 2010-04-07 | B7: Sainsburys | C7: 3.81 | D7: 0 | G7: 3.81 | N7: milk | O7: Head01 | P7: 41700 | Q7: 3.242553191 | R7: =C7-Q7 -> 0.5674468085 | S7: =Q7+R7 -> 3.81
A8: 2010-04-13 | B8: Tesco | C8: 5.18 | D8: 0.77 | G8: 4.41 | N8: toilet rolls | O8: Head01 | P8: 41700 | Q8: 4.408510638 | R8: =C8-Q8 -> 0.7714893617
A9: 2010-04-19 | B9: Sainsburys | C9: 4.9 | D9: 0.73 | G9: 4.17 | N9: toilet rolls | O9: Head01 | P9: 41700 | Q9: 4.170212766 | R9: =C9-Q9 -> 0.729787234 | S9: =Q9+R9 -> 4.9
A10: 2010-04-30 | B10: Sainsburys | C10: 2.8 | D10: 0 | G10: 2.8 | I10: ` | N10: lunch Auditor | O10: Head01 | P10: 41700 | Q10: 2.382978723 | R10: =C10-Q10 -> 0.4170212766 | S10: =Q10+R10 -> 2.8
A11: 2010-04-30 | B11: Post Office | C11: 5.9 | D11: 0 | H11: 5.9 | N11: Isg Reg | O11: Head01 | P11: 41402 | Q11: 5.021276596 | R11: 0.8787234043 | S11: 5.9
A12: 2010-05-06 | B12: Sam Beare Hospice | C12: 500 | D12: 0 | F12: 500 | N12: ball | O12: Head01 | P12: 41602 | Q12: 425.5319149 | R12: 74.46808511 | S12: 500
A13: 2010-05-13 | B13: SRM - Excel | C13: 100 | D13: 0 | F13: 100 | N13: entertainment | O13: Head01 | P13: 41602 | Q13: 85.10638298 | R13: 14.89361702 | S13: 100
A14: 2010-05-20 | B14: Dagenham Services | C14: 12.45 | D14: 1.85 | E14: 10.6 | N14: diesal | O14: Head01 | P14: 41102 | Q14: 10.59574468 | R14: 1.854255319 | S14: 12.45
C15: 37.37 | D15: 5.57 | E15: 31.8 | N15: diesal | O15: JMS01 | P15: 41102 | Q15: 31.80425532 | R15: 5.565744681 | S15: 37.37
A16: 2010-05-26 | B16: Entertainment | C16: 200 | D16: 0 | F16: 200 | N16: entertainment | O16: Head01 | P16: 41602 | Q16: 170.212766 | R16: 29.78723404 | S16: 200
A17: 2010-06-08 | B17: Post Office | C17: 5.5 | D17: 0 | H17: 5.5 | N17: Fitzgerald S.D | O17: Head01 | P17: 41402 | Q17: 4.680851064 | R17: 0.8191489362 | S17: 5.5
A18: 2010-06-10 | B18: Cricket T20 | C18: 124.2 | D18: 0 | F18: 124.2 | N18: entertainment | O18: Head01 | P18: 41601 | Q18: 105.7021277 | R18: 18.49787234 | S18: 124.2
A19: 2010-06-11 | B19: Post Office | C19: 2.98 | D19: 0 | H19: 2.98 | N19: sample | O19: ABER01 | P19: 41402 | Q19: 2.536170213 | R19: 0.4438297872 | S19: 2.98
A20: 2010-06-15 | B20: Carphone Warehous | C20: 19.99 | D20: 2.98 | M20: 17.01 | N20: Dongle DS | O20: Head01 | P20: 41700 | Q20: 17.01276596 | R20: 2.977234043 | S20: 19.99
A21: 2010-06-18 | B21: Tesco Express | C21: 10 | D21: 1.49 | E21: 8.51 | N21: diesal | O21: Head01 | P21: 41102 | Q21: 8.510638298 | R21: 1.489361702 | S21: 10
C22: 30.02 | D22: 4.47 | E22: 25.55 | N22: diesal | O22: JMS01 | P22: 41102 | Q22: 25.54893617 | R22: 4.47106383 | S22: 30.02
Q23: 0 | R23: 0 | S23: 0
Q24: 0 | R24: 0 | S24: 0
Q25: 0 | R25: 0 | S25: 0
Q26: 0 | R26: 0 | S26: 0
Q27: 0 | R27: 0 | S27: 0
Q28: 0 | R28: 0 | S28: 0
Q29: 0 | R29: 0 | S29: 0
Q30: 0 | R30: 0 | S30: 0
Q31: 0 | R31: 0 | S31: 0
Q32: 0 | R32: 0 | S32: 0
Q33: 0 | R33: 0 | S33: 0
C34: =SUM(C5:C33) -> 1087.32 | D34: =SUM(D5:D33) -> 19.95 | E34: =SUM(E5:E33) -> 76.46 | F34: =SUM(F5:F33) -> 924.2 | G34: 15.19 | H34: 22.6 | I34: 0 | J34: 0 | K34: =SUM(K5:K33) -> 0 | L34: =SUM(L5:L33) -> 0 | M34: 28.92 | Q34: =SUM(Q5:Q33) -> 925.3787234 | R34: =SUM(R5:R33) -> 161.9412766 | S34: =SUM(S5:S33) -> 1082.14

Sheet Sheet2

Sheet Sheet3
